[Event "Titled Tuesday Blitz March 14 Early 2023"]
[White "Gareyev, Timur"]
[Black "Domingo Nunez, Alejandro"]
[WhiteFideId "14200937"]
[BlackFideId "22245561"]
[WhiteElo "2563"]
[BlackElo "2230"]
[Result "1-0"]
[Round "02"]
[TimeControl "180+2"]
[Date "2023.03.14"]
[WhiteClock "0:01:34"]
[BlackClock "0:00:23"]

1. d4 {[%clk 0:02:45]}  g6 {[%clk 0:02:57]} 2. e4 {[%clk 0:02:43]}  Bg7 {[%clk 0:02:57]} 3. Nf3 {[%clk 0:02:41]}  c6 {[%clk 0:02:58]} 4. c4 {[%clk 0:02:35]}  d5 {[%clk 0:02:59]} 5. cxd5 {[%clk 0:02:31]}  cxd5 {[%clk 0:03:00]} 6. e5 {[%clk 0:02:31]}  Nc6 {[%clk 0:02:56]} 7. Bb5 {[%clk 0:02:30]}  Bg4 {[%clk 0:02:56]} 8. Nbd2 {[%clk 0:02:27]}  Rc8 {[%clk 0:02:54]} 9. O-O {[%clk 0:02:21]}  Nh6 {[%clk 0:02:53]} 10. h3 {[%clk 0:02:21]}  Bxf3 {[%clk 0:02:53]} 11. Nxf3 {[%clk 0:02:22]}  O-O {[%clk 0:02:53]} 12. Re1 {[%clk 0:02:20]}  Qb6 {[%clk 0:02:40]} 13. Bf1 {[%clk 0:01:48]}  Nf5 {[%clk 0:02:33]} 14. Be3 {[%clk 0:01:49]}  Nxe3 {[%clk 0:02:10]} 15. Rxe3 {[%clk 0:01:46]}  Na5 {[%clk 0:02:03]} 16. b3 {[%clk 0:01:44]}  Qb4 {[%clk 0:01:58]} 17. h4 {[%clk 0:01:40]}  Rc7 {[%clk 0:01:54]} 18. h5 {[%clk 0:01:38]}  Rfc8 {[%clk 0:01:54]} 19. e6 {[%clk 0:01:37]}  f5 {[%clk 0:00:53]} 20. hxg6 {[%clk 0:01:37]}  hxg6 {[%clk 0:00:53]} 21. a3 {[%clk 0:01:38]}  Qd6 {[%clk 0:00:51]} 22. Nh4 {[%clk 0:01:36]}  Qf4 {[%clk 0:00:43]} 23. Nxg6 {[%clk 0:01:34]}  Qxd4 {[%clk 0:00:41]} 24. Qh5 {[%clk 0:01:35]}  Rc3 {[%clk 0:00:23]} 25. Nxe7+ {[%clk 0:01:33]}  Kf8 {[%clk 0:00:23]} 26. Qf7# {[%clk 0:01:34]} 1-0


[Site "https://www.chess.com"]

[Event "Titled Tuesday Blitz March 14 Early 2023"]
[White "Madaminov, Mukhiddin"]
[Black "Begunov, Konstantin"]
[WhiteFideId "14210703"]
[BlackFideId "4118510"]
[WhiteElo "2511"]
[BlackElo "2079"]
[Result "1-0"]
[Round "02"]
[TimeControl "180+2"]
[Date "2023.03.14"]
[WhiteClock "0:00:07"]
[BlackClock "0:00:05"]

1. d4 {[%clk 0:03:00]}  d5 {[%clk 0:02:58]} 2. Nc3 {[%clk 0:03:01]}  Bf5 {[%clk 0:02:56]} 3. f3 {[%clk 0:03:00]}  Nf6 {[%clk 0:02:56]} 4. Bf4 {[%clk 0:03:00]}  e6 {[%clk 0:02:53]} 5. g4 {[%clk 0:03:01]}  Bg6 {[%clk 0:02:52]} 6. h4 {[%clk 0:03:01]}  h6 {[%clk 0:02:52]} 7. e3 {[%clk 0:03:01]}  Bd6 {[%clk 0:02:51]} 8. Nh3 {[%clk 0:03:02]}  c5 {[%clk 0:02:42]} 9. Nb5 {[%clk 0:02:58]}  Bxf4 {[%clk 0:02:39]} 10. Nxf4 {[%clk 0:02:59]}  Bh7 {[%clk 0:02:20]} 11. dxc5 {[%clk 0:02:57]}  O-O {[%clk 0:02:18]} 12. g5 {[%clk 0:02:51]}  Nfd7 {[%clk 0:02:05]} 13. gxh6 {[%clk 0:02:45]}  gxh6 {[%clk 0:02:01]} 14. b4 {[%clk 0:02:18]}  Nc6 {[%clk 0:01:58]} 15. a3 {[%clk 0:01:59]}  a5 {[%clk 0:01:53]} 16. c3 {[%clk 0:01:48]}  Qf6 {[%clk 0:01:37]} 17. Kf2 {[%clk 0:01:40]}  axb4 {[%clk 0:01:35]} 18. cxb4 {[%clk 0:01:34]}  Nxb4 {[%clk 0:01:21]} 19. Rc1 {[%clk 0:01:06]}  Nc6 {[%clk 0:00:59]} 20. Be2 {[%clk 0:01:04]}  Kh8 {[%clk 0:00:53]} 21. Qb3 {[%clk 0:01:01]}  Nde5 {[%clk 0:00:42]} 22. Nd6 {[%clk 0:00:34]}  d4 {[%clk 0:00:40]} 23. Rcd1 {[%clk 0:00:30]}  dxe3+ {[%clk 0:00:38]} 24. Qxe3 {[%clk 0:00:30]}  Rxa3 {[%clk 0:00:32]} 25. Qxa3 {[%clk 0:00:29]}  Qxf4 {[%clk 0:00:32]} 26. Qc3 {[%clk 0:00:26]}  f6 {[%clk 0:00:26]} 27. Rdg1 {[%clk 0:00:26]}  Nd4 {[%clk 0:00:21]} 28. Qe3 {[%clk 0:00:22]}  Nxe2 {[%clk 0:00:19]} 29. Kxe2 {[%clk 0:00:17]}  Bd3+ {[%clk 0:00:14]} 30. Kf2 {[%clk 0:00:16]}  Qxe3+ {[%clk 0:00:10]} 31. Kxe3 {[%clk 0:00:17]}  Bh7 {[%clk 0:00:09]} 32. f4 {[%clk 0:00:16]}  Nc6 {[%clk 0:00:08]} 33. Nxb7 {[%clk 0:00:16]}  e5 {[%clk 0:00:08]} 34. Nd6 {[%clk 0:00:15]}  exf4+ {[%clk 0:00:07]} 35. Kxf4 {[%clk 0:00:16]}  Nd4 {[%clk 0:00:07]} 36. Re1 {[%clk 0:00:15]}  Bg8 {[%clk 0:00:04]} 37. Rhg1 {[%clk 0:00:14]}  Rd8 {[%clk 0:00:03]} 38. Re7 {[%clk 0:00:13]}  Ne6+ {[%clk 0:00:02]} 39. Kf5 {[%clk 0:00:09]}  Nxc5 {[%clk 0:00:03]} 40. Re8 {[%clk 0:00:06]}  Rxe8 {[%clk 0:00:02]} 41. Nxe8 {[%clk 0:00:07]}  Nd7 {[%clk 0:00:02]} 42. Nxf6 {[%clk 0:00:05]}  Nxf6 {[%clk 0:00:01]} 43. Kxf6 {[%clk 0:00:06]}  Kh7 {[%clk 0:00:02]} 44. Rg7+ {[%clk 0:00:05]}  Kh8 {[%clk 0:00:02]} 45. Kg6 {[%clk 0:00:06]}  Bc4 {[%clk 0:00:01]} 46. Kxh6 {[%clk 0:00:06]}  Bd3 {[%clk 0:00:01]} 47. Rd7 {[%clk 0:00:06]}  Bc4 {[%clk 0:00:02]} 48. Kg6 {[%clk 0:00:06]}  Bg8 {[%clk 0:00:03]} 49. h5 {[%clk 0:00:04]}  Be6 {[%clk 0:00:04]} 50. Rd8+ {[%clk 0:00:05]}  Bg8 {[%clk 0:00:04]} 51. Kg5 {[%clk 0:00:05]}  Kh7 {[%clk 0:00:04]} 52. Rd7+ {[%clk 0:00:05]}  Kh8 {[%clk 0:00:05]} 53. Kg6 {[%clk 0:00:06]}  Be6 {[%clk 0:00:05]} 54. Rh7+ {[%clk 0:00:06]}  Kg8 {[%clk 0:00:05]} 55. Re7 {[%clk 0:00:07]}  Bd5 {[%clk 0:00:05]} 56. Re8# {[%clk 0:00:07]} 1-0


[Site "https://www.chess.com"]

[Event "Titled Tuesday Blitz March 14 Early 2023"]
[White "Shevtchenko, Olesya"]
[Black "Zahid, Sanatan"]
[WhiteFideId "24131890"]
[BlackFideId "10201963"]
[WhiteElo "2003"]
[BlackElo "1865"]
[Result "0-1"]
[Round "02"]
[TimeControl "180+2"]
[Date "2023.03.14"]
[WhiteClock "0:00:08"]
[BlackClock "0:01:38"]

1. e4 {[%clk 0:02:58]}  e6 {[%clk 0:03:00]} 2. d4 {[%clk 0:02:57]}  d5 {[%clk 0:03:00]} 3. Nc3 {[%clk 0:02:57]}  Nf6 {[%clk 0:02:59]} 4. Bg5 {[%clk 0:02:56]}  Bb4 {[%clk 0:02:58]} 5. exd5 {[%clk 0:02:52]}  Qxd5 {[%clk 0:02:57]} 6. Bxf6 {[%clk 0:02:51]}  gxf6 {[%clk 0:02:58]} 7. Nf3 {[%clk 0:02:45]}  Qd8 {[%clk 0:02:56]} 8. Bd3 {[%clk 0:02:44]}  Nd7 {[%clk 0:02:54]} 9. O-O {[%clk 0:02:43]}  c6 {[%clk 0:02:52]} 10. Re1 {[%clk 0:02:42]}  Nf8 {[%clk 0:02:47]} 11. a3 {[%clk 0:02:24]}  Be7 {[%clk 0:02:45]} 12. Qe2 {[%clk 0:02:20]}  Bd7 {[%clk 0:02:44]} 13. Ne4 {[%clk 0:02:19]}  Qc7 {[%clk 0:02:42]} 14. c4 {[%clk 0:02:17]}  O-O-O {[%clk 0:02:41]} 15. b4 {[%clk 0:02:17]}  f5 {[%clk 0:02:41]} 16. Nc5 {[%clk 0:02:16]}  Ng6 {[%clk 0:02:40]} 17. Qc2 {[%clk 0:01:59]}  Bf6 {[%clk 0:02:34]} 18. Rad1 {[%clk 0:01:53]}  Nf4 {[%clk 0:02:28]} 19. Bf1 {[%clk 0:01:53]}  b6 {[%clk 0:02:19]} 20. Na6 {[%clk 0:01:45]}  Qb7 {[%clk 0:02:16]} 21. b5 {[%clk 0:01:43]}  Rhg8 {[%clk 0:02:16]} 22. c5 {[%clk 0:01:32]}  Rxg2+ {[%clk 0:02:02]} 23. Kh1 {[%clk 0:01:13]}  Rdg8 {[%clk 0:02:02]} 24. cxb6 {[%clk 0:01:07]}  axb6 {[%clk 0:01:59]} 25. Bxg2 {[%clk 0:00:53]}  Rxg2 {[%clk 0:01:56]} 26. Rg1 {[%clk 0:00:53]}  c5 {[%clk 0:01:54]} 27. d5 {[%clk 0:00:50]}  Rxg1+ {[%clk 0:01:48]} 28. Kxg1 {[%clk 0:00:50]}  Nxd5 {[%clk 0:01:44]} 29. Qd2 {[%clk 0:00:30]}  Bxb5 {[%clk 0:01:42]} 30. Qh6 {[%clk 0:00:10]}  Bxa6 {[%clk 0:01:42]} 31. Qf8+ {[%clk 0:00:10]}  Bd8 {[%clk 0:01:41]} 32. Ne5 {[%clk 0:00:10]}  Qe7 {[%clk 0:01:38]} 33. Qh8 {[%clk 0:00:07]}  Bb7 {[%clk 0:01:37]} 34. f3 {[%clk 0:00:07]}  Qf6 {[%clk 0:01:34]} 35. Qxf6 {[%clk 0:00:05]}  Bxf6 {[%clk 0:01:35]} 36. Nxf7 {[%clk 0:00:06]}  Kc7 {[%clk 0:01:36]} 37. Kf2 {[%clk 0:00:05]}  Bd4+ {[%clk 0:01:36]} 38. Kg3 {[%clk 0:00:05]}  f4+ {[%clk 0:01:36]} 39. Kg4 {[%clk 0:00:05]}  Ne3+ {[%clk 0:01:36]} 40. Kh5 {[%clk 0:00:06]}  Nxd1 {[%clk 0:01:37]} 41. Kh6 {[%clk 0:00:07]}  Bxf3 {[%clk 0:01:37]} 42. Kxh7 {[%clk 0:00:08]}  Be4+ {[%clk 0:01:38]} 0-1


[Site "https://www.chess.com"]

[Event "Titled Tuesday Blitz March 14 Early 2023"]
[White "Albornoz Cabrera, Carlos Daniel"]
[Black "Sarkar, Justin"]
[WhiteFideId "3518736"]
[BlackFideId "2010011"]
[WhiteElo "2501"]
[BlackElo "2189"]
[Result "1-0"]
[Round "02"]
[TimeControl "180+2"]
[Date "2023.03.14"]
[WhiteClock "0:02:09"]
[BlackClock "0:00:12"]

1. Nf3 {[%clk 0:03:00]}  d5 {[%clk 0:02:53]} 2. d4 {[%clk 0:03:00]}  Nf6 {[%clk 0:02:51]} 3. c4 {[%clk 0:03:01]}  e6 {[%clk 0:02:51]} 4. Nc3 {[%clk 0:03:01]}  Bb4 {[%clk 0:02:44]} 5. cxd5 {[%clk 0:03:01]}  exd5 {[%clk 0:02:44]} 6. Bg5 {[%clk 0:03:01]}  h6 {[%clk 0:02:41]} 7. Bh4 {[%clk 0:03:01]}  g5 {[%clk 0:02:26]} 8. Bg3 {[%clk 0:03:00]}  Ne4 {[%clk 0:02:26]} 9. Nd2 {[%clk 0:03:00]}  Nxg3 {[%clk 0:02:22]} 10. hxg3 {[%clk 0:03:01]}  c6 {[%clk 0:02:22]} 11. Qc2 {[%clk 0:03:00]}  Be6 {[%clk 0:02:12]} 12. a3 {[%clk 0:02:59]}  Bf8 {[%clk 0:02:07]} 13. e3 {[%clk 0:02:59]}  Nd7 {[%clk 0:02:04]} 14. Bd3 {[%clk 0:02:59]}  Bg7 {[%clk 0:01:57]} 15. Na4 {[%clk 0:02:45]}  Rc8 {[%clk 0:01:49]} 16. b4 {[%clk 0:02:45]}  b6 {[%clk 0:01:38]} 17. Rc1 {[%clk 0:02:39]}  O-O {[%clk 0:01:25]} 18. O-O {[%clk 0:02:37]}  g4 {[%clk 0:01:09]} 19. Nc3 {[%clk 0:02:23]}  c5 {[%clk 0:00:56]} 20. Ba6 {[%clk 0:02:21]}  cxd4 {[%clk 0:00:32]} 21. exd4 {[%clk 0:02:22]}  Rc7 {[%clk 0:00:25]} 22. Qd3 {[%clk 0:02:13]}  Qf6 {[%clk 0:00:20]} 23. Nxd5 {[%clk 0:02:10]}  Bxd5 {[%clk 0:00:12]} 24. Rxc7 {[%clk 0:02:09]} 1-0


[Site "https://www.chess.com"]

[Event "Titled Tuesday Blitz March 14 Early 2023"]
[White "Klepikov, Nikita"]
[Black "Molina, Roberto Junio Brito"]
[WhiteFideId "24145220"]
[BlackFideId "2109450"]
[WhiteElo "2025"]
[BlackElo "2376"]
[Result "1-0"]
[Round "02"]
[TimeControl "180+2"]
[Date "2023.03.14"]
[WhiteClock "0:00:04"]
[BlackClock "0:00:02"]

1. e4 {[%clk 0:02:56]}  c6 {[%clk 0:02:58]} 2. d4 {[%clk 0:02:56]}  d5 {[%clk 0:02:59]} 3. Nd2 {[%clk 0:02:56]}  dxe4 {[%clk 0:02:59]} 4. Nxe4 {[%clk 0:02:57]}  Nd7 {[%clk 0:03:00]} 5. Bc4 {[%clk 0:02:56]}  Ngf6 {[%clk 0:03:00]} 6. Ng5 {[%clk 0:02:57]}  e6 {[%clk 0:03:00]} 7. c3 {[%clk 0:02:57]}  h6 {[%clk 0:02:58]} 8. N5f3 {[%clk 0:02:57]}  Bd6 {[%clk 0:02:57]} 9. Qe2 {[%clk 0:02:53]}  Qc7 {[%clk 0:02:56]} 10. a4 {[%clk 0:01:59]}  b6 {[%clk 0:02:53]} 11. Be3 {[%clk 0:01:46]}  Bb7 {[%clk 0:02:51]} 12. h3 {[%clk 0:01:45]}  c5 {[%clk 0:02:40]} 13. Rd1 {[%clk 0:01:18]}  O-O {[%clk 0:02:25]} 14. Ba6 {[%clk 0:01:06]}  cxd4 {[%clk 0:02:19]} 15. Nxd4 {[%clk 0:00:27]}  Bxa6 {[%clk 0:01:05]} 16. Qxa6 {[%clk 0:00:26]}  Nc5 {[%clk 0:01:06]} 17. Qc4 {[%clk 0:00:21]}  a6 {[%clk 0:00:59]} 18. Ngf3 {[%clk 0:00:19]}  Rfc8 {[%clk 0:00:56]} 19. O-O {[%clk 0:00:19]}  Qb7 {[%clk 0:00:54]} 20. Qa2 {[%clk 0:00:13]}  Bf8 {[%clk 0:00:43]} 21. Rc1 {[%clk 0:00:13]}  b5 {[%clk 0:00:42]} 22. a5 {[%clk 0:00:12]}  b4 {[%clk 0:00:38]} 23. cxb4 {[%clk 0:00:09]}  Nd3 {[%clk 0:00:36]} 24. Rxc8 {[%clk 0:00:06]}  Rxc8 {[%clk 0:00:37]} 25. b5 {[%clk 0:00:05]}  axb5 {[%clk 0:00:34]} 26. Qb3 {[%clk 0:00:05]}  Nb4 {[%clk 0:00:23]} 27. Bd2 {[%clk 0:00:06]}  Rc4 {[%clk 0:00:18]} 28. Ra1 {[%clk 0:00:05]}  Bc5 {[%clk 0:00:16]} 29. Bc3 {[%clk 0:00:06]}  Nfd5 {[%clk 0:00:15]} 30. a6 {[%clk 0:00:06]}  Nxa6 {[%clk 0:00:15]} 31. Qxb5 {[%clk 0:00:05]}  Qxb5 {[%clk 0:00:15]} 32. Nxb5 {[%clk 0:00:06]}  Nac7 {[%clk 0:00:14]} 33. Nxc7 {[%clk 0:00:06]}  Nxc7 {[%clk 0:00:15]} 34. Rd1 {[%clk 0:00:04]}  Nd5 {[%clk 0:00:14]} 35. Rd3 {[%clk 0:00:05]}  f6 {[%clk 0:00:13]} 36. Kf1 {[%clk 0:00:04]}  Kf7 {[%clk 0:00:13]} 37. Nd2 {[%clk 0:00:05]}  Ra4 {[%clk 0:00:12]} 38. Ke2 {[%clk 0:00:05]}  Ra2 {[%clk 0:00:12]} 39. Nb3 {[%clk 0:00:05]}  Be7 {[%clk 0:00:09]} 40. Nc1 {[%clk 0:00:03]}  Ra1 {[%clk 0:00:06]} 41. Kd2 {[%clk 0:00:03]}  Bd6 {[%clk 0:00:02]} 42. Kc2 {[%clk 0:00:04]} 1-0


[Site "https://www.chess.com"]

[Event "Titled Tuesday Blitz March 14 Early 2023"]
[White "Real_OceanStorm"]
[Black "Manon-og, Ramon Jr."]
[BlackFideId "5200776"]
[WhiteElo "2808"]
[BlackElo "2337"]
[Result "1-0"]
[Round "02"]
[TimeControl "180+2"]
[Date "2023.03.14"]
[WhiteClock "0:00:40"]
[BlackClock "0:00:04"]

1. e4 {[%clk 0:03:00]}  c5 {[%clk 0:02:59]} 2. c3 {[%clk 0:02:41]}  d6 {[%clk 0:02:58]} 3. d4 {[%clk 0:02:41]}  cxd4 {[%clk 0:02:59]} 4. cxd4 {[%clk 0:02:42]}  Nf6 {[%clk 0:02:57]} 5. Nc3 {[%clk 0:02:42]}  e6 {[%clk 0:02:58]} 6. Nf3 {[%clk 0:02:42]}  Be7 {[%clk 0:02:58]} 7. Bd3 {[%clk 0:02:40]}  h6 {[%clk 0:02:41]} 8. O-O {[%clk 0:02:39]}  O-O {[%clk 0:02:41]} 9. Be3 {[%clk 0:02:39]}  Ng4 {[%clk 0:02:34]} 10. Bd2 {[%clk 0:02:38]}  e5 {[%clk 0:02:26]} 11. Nd5 {[%clk 0:02:09]}  Nc6 {[%clk 0:02:18]} 12. Nxe7+ {[%clk 0:02:09]}  Qxe7 {[%clk 0:02:18]} 13. h3 {[%clk 0:02:09]}  Nf6 {[%clk 0:02:15]} 14. d5 {[%clk 0:02:09]}  Nd8 {[%clk 0:01:59]} 15. Rc1 {[%clk 0:01:57]}  Nh5 {[%clk 0:01:49]} 16. Re1 {[%clk 0:01:56]}  Nf4 {[%clk 0:01:48]} 17. Bxf4 {[%clk 0:01:56]}  exf4 {[%clk 0:01:49]} 18. Qd2 {[%clk 0:01:56]}  Qf6 {[%clk 0:01:45]} 19. Rc7 {[%clk 0:01:42]}  Re8 {[%clk 0:01:34]} 20. Rec1 {[%clk 0:01:42]}  Bxh3 {[%clk 0:01:00]} 21. gxh3 {[%clk 0:01:20]}  Qg6+ {[%clk 0:00:38]} 22. Kh2 {[%clk 0:01:13]}  Qf6 {[%clk 0:00:38]} 23. Rg1 {[%clk 0:01:05]}  Kh8 {[%clk 0:00:37]} 24. Rg4 {[%clk 0:01:05]}  g5 {[%clk 0:00:36]} 25. h4 {[%clk 0:01:04]}  Ne6 {[%clk 0:00:27]} 26. dxe6 {[%clk 0:01:02]}  Qxe6 {[%clk 0:00:28]} 27. Qc3+ {[%clk 0:00:56]}  f6 {[%clk 0:00:24]} 28. Rg1 {[%clk 0:00:56]}  g4 {[%clk 0:00:23]} 29. Rxg4 {[%clk 0:00:51]}  Rg8 {[%clk 0:00:20]} 30. Rxg8+ {[%clk 0:00:46]}  Rxg8 {[%clk 0:00:21]} 31. Bc4 {[%clk 0:00:41]}  d5 {[%clk 0:00:09]} 32. Bxd5 {[%clk 0:00:41]}  Qg4 {[%clk 0:00:05]} 33. Qxf6+ {[%clk 0:00:40]}  Rg7 {[%clk 0:00:05]} 34. Qxh6+ {[%clk 0:00:39]}  Rh7 {[%clk 0:00:04]} 35. Qxh7# {[%clk 0:00:40]} 1-0


[Site "https://www.chess.com"]

[Event "Titled Tuesday Blitz March 14 Early 2023"]
[White "Lesbekova, Assel"]
[Black "Santos Ruiz, Miguel"]
[WhiteFideId "13713248"]
[BlackFideId "22291482"]
[WhiteElo "1799"]
[BlackElo "2504"]
[Result "1-0"]
[Round "02"]
[TimeControl "180+2"]
[Date "2023.03.14"]
[WhiteClock "0:01:04"]
[BlackClock "0:00:06"]

1. e4 {[%clk 0:02:58]}  c5 {[%clk 0:02:58]} 2. Nf3 {[%clk 0:02:59]}  d6 {[%clk 0:02:57]} 3. Bb5+ {[%clk 0:02:59]}  Nd7 {[%clk 0:02:54]} 4. O-O {[%clk 0:02:59]}  a6 {[%clk 0:02:53]} 5. Bxd7+ {[%clk 0:02:58]}  Qxd7 {[%clk 0:02:52]} 6. e5 {[%clk 0:02:58]}  dxe5 {[%clk 0:02:44]} 7. Nxe5 {[%clk 0:02:59]}  Qd5 {[%clk 0:02:42]} 8. Re1 {[%clk 0:02:59]}  f6 {[%clk 0:02:37]} 9. Nc3 {[%clk 0:02:58]}  Qe6 {[%clk 0:02:25]} 10. Ng6 {[%clk 0:02:52]}  Qxe1+ {[%clk 0:02:24]} 11. Qxe1 {[%clk 0:02:51]}  hxg6 {[%clk 0:02:24]} 12. Na4 {[%clk 0:02:49]}  e5 {[%clk 0:02:17]} 13. Nb6 {[%clk 0:02:40]}  Rb8 {[%clk 0:02:17]} 14. c3 {[%clk 0:02:40]}  Bd6 {[%clk 0:02:04]} 15. d4 {[%clk 0:02:35]}  Ne7 {[%clk 0:01:46]} 16. Nc4 {[%clk 0:02:27]}  Bc7 {[%clk 0:01:43]} 17. dxe5 {[%clk 0:02:24]}  Be6 {[%clk 0:01:26]} 18. Nd6+ {[%clk 0:02:18]}  Kd7 {[%clk 0:01:25]} 19. Bf4 {[%clk 0:02:15]}  g5 {[%clk 0:01:15]} 20. Bg3 {[%clk 0:02:15]}  f5 {[%clk 0:01:14]} 21. f3 {[%clk 0:02:09]}  Nc6 {[%clk 0:00:58]} 22. Rd1 {[%clk 0:02:01]}  Ke7 {[%clk 0:00:58]} 23. Bf2 {[%clk 0:02:01]}  b6 {[%clk 0:00:57]} 24. b3 {[%clk 0:01:59]}  Rbd8 {[%clk 0:00:56]} 25. Qe2 {[%clk 0:01:56]}  Bxd6 {[%clk 0:00:39]} 26. exd6+ {[%clk 0:01:54]}  Rxd6 {[%clk 0:00:40]} 27. Rxd6 {[%clk 0:01:51]}  Kxd6 {[%clk 0:00:41]} 28. Qxa6 {[%clk 0:01:45]}  Kc7 {[%clk 0:00:41]} 29. g3 {[%clk 0:01:41]}  Rd8 {[%clk 0:00:40]} 30. Qe2 {[%clk 0:01:41]}  Bc8 {[%clk 0:00:34]} 31. Be3 {[%clk 0:01:36]}  g4 {[%clk 0:00:25]} 32. Bf4+ {[%clk 0:01:35]}  Kb7 {[%clk 0:00:25]} 33. fxg4 {[%clk 0:01:34]}  fxg4 {[%clk 0:00:26]} 34. a4 {[%clk 0:01:33]}  Rd7 {[%clk 0:00:16]} 35. Qxg4 {[%clk 0:01:26]}  Re7 {[%clk 0:00:14]} 36. Qd1 {[%clk 0:01:24]}  Bh3 {[%clk 0:00:13]} 37. Kf2 {[%clk 0:01:22]}  Rf7 {[%clk 0:00:12]} 38. Qd5 {[%clk 0:01:19]}  Rd7 {[%clk 0:00:12]} 39. Qe4 {[%clk 0:01:16]}  Re7 {[%clk 0:00:11]} 40. Qf3 {[%clk 0:01:15]}  Be6 {[%clk 0:00:11]} 41. b4 {[%clk 0:01:14]}  Rd7 {[%clk 0:00:09]} 42. b5 {[%clk 0:01:14]}  Bd5 {[%clk 0:00:10]} 43. bxc6+ {[%clk 0:01:12]}  Bxc6 {[%clk 0:00:11]} 44. Qg4 {[%clk 0:01:12]}  Rd3 {[%clk 0:00:08]} 45. h4 {[%clk 0:01:07]}  Ka6 {[%clk 0:00:07]} 46. Qxg7 {[%clk 0:01:07]}  Rf3+ {[%clk 0:00:06]} 47. Ke2 {[%clk 0:01:07]}  c4 {[%clk 0:00:06]} 48. Qd4 {[%clk 0:01:04]} 1-0


[Site "https://www.chess.com"]

[Event "Titled Tuesday Blitz March 14 Early 2023"]
[White "Kornyukov, Alexey"]
[Black "Galchenko, Matvey"]
[WhiteFideId "4150457"]
[BlackFideId "24175480"]
[WhiteElo "2352"]
[BlackElo "2404"]
[Result "0-1"]
[Round "02"]
[TimeControl "180+2"]
[Date "2023.03.14"]
[WhiteClock "0:00:21"]
[BlackClock "0:00:33"]

1. e4 {[%clk 0:02:55]}  e6 {[%clk 0:03:00]} 2. d4 {[%clk 0:02:54]}  d5 {[%clk 0:03:00]} 3. Nc3 {[%clk 0:02:53]}  Bb4 {[%clk 0:03:00]} 4. exd5 {[%clk 0:02:52]}  exd5 {[%clk 0:03:01]} 5. Bd3 {[%clk 0:02:48]}  Nc6 {[%clk 0:03:01]} 6. a3 {[%clk 0:02:47]}  Ba5 {[%clk 0:03:01]} 7. Ne2 {[%clk 0:02:38]}  Nge7 {[%clk 0:03:00]} 8. O-O {[%clk 0:02:36]}  O-O {[%clk 0:02:57]} 9. b4 {[%clk 0:02:35]}  Bb6 {[%clk 0:02:56]} 10. Bb2 {[%clk 0:02:32]}  Bf5 {[%clk 0:02:43]} 11. b5 {[%clk 0:02:15]}  Nxd4 {[%clk 0:02:24]} 12. Nxd4 {[%clk 0:01:48]}  Bxd4 {[%clk 0:02:25]} 13. Bxf5 {[%clk 0:01:45]}  Nxf5 {[%clk 0:02:26]} 14. Qg4 {[%clk 0:01:43]}  Qd7 {[%clk 0:01:32]} 15. Rad1 {[%clk 0:01:33]}  Bxc3 {[%clk 0:01:28]} 16. Bxc3 {[%clk 0:01:31]}  f6 {[%clk 0:01:12]} 17. Rd2 {[%clk 0:01:18]}  Rad8 {[%clk 0:01:10]} 18. Rfd1 {[%clk 0:01:17]}  c6 {[%clk 0:00:52]} 19. bxc6 {[%clk 0:01:12]}  bxc6 {[%clk 0:00:52]} 20. Ba5 {[%clk 0:01:12]}  Nd6 {[%clk 0:00:46]} 21. Qf4 {[%clk 0:00:51]}  Rde8 {[%clk 0:00:43]} 22. c4 {[%clk 0:00:47]}  Re4 {[%clk 0:00:42]} 23. Qg3 {[%clk 0:00:39]}  Nxc4 {[%clk 0:00:42]} 24. Rc2 {[%clk 0:00:35]}  Nxa5 {[%clk 0:00:40]} 25. Qc3 {[%clk 0:00:31]}  Nc4 {[%clk 0:00:36]} 26. f3 {[%clk 0:00:27]}  Re7 {[%clk 0:00:33]} 27. Qa5 {[%clk 0:00:21]}  Nxa5 {[%clk 0:00:33]} 0-1


[Site "https://www.chess.com"]

[Event "Titled Tuesday Blitz March 14 Early 2023"]
[White "Narayanan, Srinath"]
[Black "Torres Dominguez, David"]
[WhiteFideId "5018420"]
[BlackFideId "2220857"]
[WhiteElo "2438"]
[BlackElo "1999"]
[Result "1-0"]
[Round "02"]
[TimeControl "180+2"]
[Date "2023.03.14"]
[WhiteClock "0:00:05"]
[BlackClock "0:00:12"]

1. d4 {[%clk 0:02:58]}  e5 {[%clk 0:02:59]} 2. dxe5 {[%clk 0:02:58]}  d6 {[%clk 0:02:58]} 3. Nf3 {[%clk 0:02:55]}  Bg4 {[%clk 0:02:57]} 4. exd6 {[%clk 0:02:50]}  Bxd6 {[%clk 0:02:55]} 5. Nc3 {[%clk 0:02:48]}  Nc6 {[%clk 0:02:54]} 6. e4 {[%clk 0:02:43]}  Qe7 {[%clk 0:02:39]} 7. Bd3 {[%clk 0:02:41]}  O-O-O {[%clk 0:02:36]} 8. h3 {[%clk 0:02:39]}  Bh5 {[%clk 0:02:34]} 9. g4 {[%clk 0:02:38]}  Bg6 {[%clk 0:02:33]} 10. Qe2 {[%clk 0:02:38]}  Nf6 {[%clk 0:02:30]} 11. Bg5 {[%clk 0:02:37]}  Rhe8 {[%clk 0:02:23]} 12. O-O-O {[%clk 0:02:34]}  h6 {[%clk 0:02:01]} 13. Nd5 {[%clk 0:02:29]}  Qe6 {[%clk 0:01:54]} 14. Bxf6 {[%clk 0:02:18]}  gxf6 {[%clk 0:01:53]} 15. Rhe1 {[%clk 0:02:16]}  Bc5 {[%clk 0:01:19]} 16. Kb1 {[%clk 0:02:08]}  h5 {[%clk 0:01:02]} 17. Nf4 {[%clk 0:01:41]}  Qe7 {[%clk 0:00:54]} 18. gxh5 {[%clk 0:01:36]}  Bh7 {[%clk 0:00:53]} 19. c3 {[%clk 0:00:59]}  Ne5 {[%clk 0:00:41]} 20. Bc2 {[%clk 0:00:48]}  Bd6 {[%clk 0:00:24]} 21. Nd4 {[%clk 0:00:44]}  f5 {[%clk 0:00:19]} 22. exf5 {[%clk 0:00:38]}  Qh4 {[%clk 0:00:18]} 23. Nd5 {[%clk 0:00:35]}  Nc6 {[%clk 0:00:15]} 24. Qxe8 {[%clk 0:00:26]}  Rxe8 {[%clk 0:00:14]} 25. Rxe8+ {[%clk 0:00:26]}  Nd8 {[%clk 0:00:14]} 26. Re4 {[%clk 0:00:27]}  Qxh3 {[%clk 0:00:12]} 27. Nb5 {[%clk 0:00:19]}  Qxh5 {[%clk 0:00:12]} 28. Rc4 {[%clk 0:00:11]}  Kb8 {[%clk 0:00:10]} 29. Ndxc7 {[%clk 0:00:09]}  Bxc7 {[%clk 0:00:08]} 30. Rxc7 {[%clk 0:00:10]}  Nc6 {[%clk 0:00:06]} 31. Rdd7 {[%clk 0:00:05]}  Qd1+ {[%clk 0:00:07]} 32. Rxd1 {[%clk 0:00:04]}  a6 {[%clk 0:00:08]} 33. Rxf7 {[%clk 0:00:04]}  Bxf5 {[%clk 0:00:08]} 34. Rxf5 {[%clk 0:00:04]}  axb5 {[%clk 0:00:08]} 35. Rxb5 {[%clk 0:00:05]}  Ka7 {[%clk 0:00:08]} 36. Rbd5 {[%clk 0:00:05]}  Nb4 {[%clk 0:00:09]} 37. cxb4 {[%clk 0:00:05]}  Kb6 {[%clk 0:00:08]} 38. Re5 {[%clk 0:00:05]}  Kc6 {[%clk 0:00:09]} 39. Rg1 {[%clk 0:00:06]}  Kb6 {[%clk 0:00:09]} 40. Rg6+ {[%clk 0:00:06]}  Ka7 {[%clk 0:00:10]} 41. Rb5 {[%clk 0:00:06]}  b6 {[%clk 0:00:10]} 42. Rd5 {[%clk 0:00:05]}  Kb7 {[%clk 0:00:11]} 43. Bd3 {[%clk 0:00:05]}  Kc7 {[%clk 0:00:11]} 44. Rh5 {[%clk 0:00:05]}  b5 {[%clk 0:00:12]} 45. Rh7+ {[%clk 0:00:05]} 1-0


[Site "https://www.chess.com"]